fUSD/lending_fUSD_20240930
["ID","MTS","AMOUNT","RATE_DAILY","PERIOD"]
[339505226,1727661032423,-519.85,0.00010213,2]
[339505227,1727661032432,-519.85,0.00010216,2]
[339505228,1727661032442,-1001.53933998,0.0001039,2]
[339505229,1727661032451,-169.66,0.00010391,2]
[339505230,1727661032461,-681.318,0.00010391,2]
[339505231,1727661032470,-341.04,0.0001045,2]
[339505232,1727661032479,-1000.0,0.00010536,2]
[339505233,1727661032489,-187.82,0.00010679,2]
[339505235,1727661032498,-168.17,0.00010714,2]
[339505237,1727661032507,-150.96,0.00010856,2]
[339505239,1727661032516,-150.0,0.00010856,2]
[339505241,1727661032525,-150.0,0.00010856,2]
[339505243,1727661032534,-7715.92774825,0.000109,2]
[339505245,1727661032549,-155.94,0.00010959,2]
[339505247,1727661032564,-160.28,0.00010959,2]
[339505248,1727661032574,-250.0,0.00010959,2]
[339505249,1727661032583,-195.17,0.00010959,2]
[339505250,1727661032593,-153.1,0.00010959,2]
[339505251,1727661032605,-4018.82541268,0.0001099,2]
[339505252,1727661032615,-170.46704509,0.00010999,2]
[339505253,1727661032625,-218.043,0.00010999,2]
[339505254,1727661032635,-1950.0,0.00011,2]
[339505255,1727661032645,-90921.22737725,0.00011,2]
[339505256,1727661032656,-1016.68710494,0.00011,2]
[339505258,1727661032667,-325.5,0.00011,2]
[339505264,1727661032711,-2534.578025,0.00011,2]
[339505266,1727661032722,-15223.38664326,0.00011,2]
[339505268,1727661032734,-377.86782155,0.00011,2]
[339505271,1727661032745,-79478.27462666,0.00011,2]
[339505273,1727661032755,-151.0,0.00011003,2]
[339505275,1727661032764,-151.0,0.00011003,2]
[339505277,1727661032773,-151.0,0.00011003,2]
[339505278,1727661032782,-7715.92774817,0.00011066,2]
[339505279,1727661032792,-500.0,0.00011164,2]
[339505280,1727661032805,-420.0,0.0001119,2]
[339505281,1727661032814,-422.34458308,0.00011228,2]
[339505282,1727661032823,-7715.92774817,0.00011232,2]
[339505283,1727661032832,-158.859825,0.00011375,2]
[339505284,1727661032842,-422.34458308,0.00011384,2]
[339505285,1727661032850,-1569.17870438,0.00011398,2]
[339505286,1727661032885,-1891.96129736,0.00011398,2]
[339505287,1727661032900,-4254.78774643,0.00011398,2]
[339505288,1727661032909,-300.12,0.00011404,2]
[339505289,1727661032917,-600.0,0.00011438,2]
[339505290,1727661032926,-900.0,0.00011438,2]
[339505291,1727661032935,-781.74176535,0.00011472,3]
[339505292,1727661032946,-342.21061506,0.00011472,3]
[339505293,1727661032955,-7715.92774817,0.00011564,2]
[339505294,1727661033202,-169.66,0.0001169,2]
[339505295,1727661033212,-191.1,0.00011716,2]
[339505296,1727661033222,-151.0,0.00011729,2]
[339505297,1727661033232,-151.0,0.00011729,2]
[339505298,1727661033241,-211.068241,0.00011729,2]
[339505299,1727661033251,-7310.53339576,0.00011729,2]
[339505300,1727661033619,-405.39435241,0.00011729,2]
[339505301,1727661033629,-57.65564759,0.0001175,2]
[339505308,1727661038228,-1672.31303304,0.00011,2]
[339505311,1727661038362,-282.31453849,0.00011,2]
[339505312,1727661038373,-32506.72599331,0.00011,2]
[339505316,1727661040277,-1236.697256,0.00011,2]
[339505317,1727661040288,-10101.12584677,0.00011,2]
[339505318,1727661040303,-325.49031905,0.00011,2]
[339505321,1727661040486,-4386.04381214,0.00011,2]
[339505323,1727661040497,-3251.89865,0.00011,2]
[339505361,1727661043387,-654.30999433,0.00011,2]
[339505362,1727661043399,-1950.0,0.00011,2]
[339505363,1727661043427,-1057.34398736,0.00011,2]
[339505364,1727661043439,-1456.99999988,0.00011,2]
[339505368,1727661046302,-1050.0,0.0001,2]
[339505369,1727661046313,-587.19630785,0.00011,2]
[339505370,1727661046324,-6418.58892516,0.00011,2]
[339505371,1727661046335,-1628.30505751,0.00011,2]
[339505372,1727661046347,-1312.45000001,0.00011,2]
[339505373,1727661046359,-28018.03686726,0.00011,2]
[339505374,1727661046370,-6332.64,0.00011,2]
[339505376,1727661046506,-1229.9991,0.00011,2]
[339505377,1727661046518,-6300.45,0.00011,2]
[339505379,1727661213164,1007.75180248,9.968e-05,2]
[339505384,1727661410996,320.29,9.102e-05,2]
[339505385,1727661959872,334.22153535,9.968e-05,2]
[339505387,1727662016047,172.49,8.66e-05,2]
[339505388,1727662045200,335.34,8.902e-05,2]
[339505389,1727662050329,161.4,9.589e-05,2]
[339505390,1727662216906,150.623304,0.00015,30]
[339505391,1727662217418,150.623304,0.00015,30]
[339505397,1727662232492,-700.0,0.00010068,2]
[339505398,1727662232502,-600.0,0.00010068,2]
[339505399,1727662232512,-500.0,0.00010068,2]
[339505400,1727662232522,-11411.58498187,0.00010728,2]
[339505401,1727662232531,-23900.0,0.00010826,2]
[339505402,1727662232541,-168.2,0.00010826,2]
[339505403,1727662232550,-241.64,0.00010846,2]
[339505404,1727662232559,-699.02,0.00010868,2]
[339505405,1727662232568,-221.95,0.00010908,2]
[339505406,1727662232578,-154.48,0.00010959,2]
[339505407,1727662232587,-181.42,0.00010959,2]
[339505408,1727662232597,-1252.6790516,0.00010965,2]
[339505409,1727662232606,-1252.6790516,0.00010965,2]
[339505410,1727662232616,-1200.0206797,0.00010999,3]
[339505411,1727662232626,-20000.0,0.00011,2]
[339505412,1727662232635,-250.0,0.00011065,2]
[339505413,1727662232644,-1000.0,0.00011068,2]
[339505414,1727662232654,-501.01832321,0.00011164,2]
[339505415,1727662232663,-335.34,0.00011165,2]
[339505416,1727662232673,-800.0,0.000112,4]
[339505417,1727662232683,-153.34825745,0.00011219,2]
[339505418,1727662232692,-155.0429656,0.00011219,2]
[339505419,1727662232702,-1700.0,0.000113,4]
[339505420,1727662232711,-2500.0,0.000114,4]
[339505421,1727662232721,-700.0,0.00011438,2]
[339505422,1727662232731,-600.0,0.00011438,2]
[339505423,1727662232741,-422.34458308,0.00011482,2]
[339505424,1727662232750,-3400.0,0.000115,4]
[339505425,1727662232759,-2717.07254874,0.00011532,2]
[339505426,1727662232769,-4200.0,0.000116,4]
[339505427,1727662232780,-3485.10217227,0.0001163,2]
[339505428,1727662232791,-800.0,0.000117,4]
[339505429,1727662232800,-800.0,0.000118,4]
[339505430,1727662232811,-187.82,0.00011866,2]
[339505431,1727662232821,-800.0,0.000119,4]
[339505432,1727662232832,-536.9648,0.000119,2]
[339505433,1727662232843,-505.47,0.00011929,6]
[339505434,1727662232853,-4000.0,0.00012,2]
[339505435,1727662232863,-7200.0,0.00012,2]
[339505436,1727662232873,-1100.0,0.00012,2]
[339505437,1727662232882,-221.97,0.00012,2]
[339505438,1727662232892,-4224.03927646,0.00012031,2]
[339505439,1727662232903,-161.13,0.00012033,2]
[339505440,1727662232912,-1083.649,0.00012091,2]
[339505441,1727662232922,-150.623304,0.00012125,2]
[339505442,1727662232932,-187.8501,0.00012228,2]
[339505443,1727662232941,-2952.9912,0.00012228,2]
[339505444,1727662232950,-2500.0,0.00012228,2]
[339505445,1727662232959,-3658.9311,0.00012229,2]
[339505446,1727662232968,-2989.7742,0.00012229,2]
[339505447,1727662232978,-208.4445,0.00012229,2]
[339505448,1727662232988,-3236.34,0.00012229,2]
[339505449,1727662232997,-2305.9359,0.00012229,2]
[339505450,1727662233006,-4135.60664245,0.00012229,2]
[339505451,1727662233015,-2008.0,0.00012247,2]
[339505452,1727662233025,-985.0,0.00012247,2]
[339505453,1727662233039,-1173.823716,0.00012247,2]
[339505454,1727662233048,-4135.60664244,0.00012247,2]
[339505455,1727662233057,-4135.60664244,0.00012265,2]
[339505456,1727662233067,-221.95,0.00012271,2]
[339505457,1727662233076,-4135.60664244,0.00012284,2]
[339505458,1727662233086,-266.301,0.00012294,2]
[339505459,1727662233095,-173.109,0.00012294,2]
[339505460,1727662233104,-48057.51371868,0.000123,2]
[339505461,1727662233118,-2110.1425442,0.000123,2]
[339505462,1727662233183,-259.07576367,0.000123,2]
[339505464,1727662238481,-886.22,0.00010959,2]
[339505465,1727662238490,-299.12288774,0.000123,2]
[339505466,1727662238501,-250.0,0.000123,2]
[339505467,1727662238634,-307.25000024,0.000123,2]
[339505468,1727662238784,-11790.52621865,0.000123,2]
[339505492,1727662240489,-22733.10265911,0.000123,2]
[339505493,1727662240659,-2312.08812729,0.000123,2]
[339505494,1727662240671,-5468.42383116,0.000123,2]
[339505495,1727662240688,-269.30049999,0.000123,2]
[339505496,1727662240708,-3289.632805,0.000123,2]
[339505512,1727662243632,-3250.94727414,0.000123,2]
[339505513,1727662243644,-1945.05,0.000123,2]
[339505514,1727662243799,-1621.5,0.000123,2]
[339505515,1727662243811,-6339.74284257,0.000123,2]
[339505521,1727662246599,-738.52,0.00010959,2]
[339505522,1727662246609,-6386.48,0.000123,2]
[339505523,1727662246622,-32447.415,0.000123,2]
[339505524,1727662246633,-1623.07145,0.000123,2]
[339505526,1727662307732,200.0,0.00014925,30]
[339505527,1727662307766,200.0,0.00014925,30]
[339505528,1727662307833,200.0,0.00014925,30]
[339505529,1727662307883,245.37295182,0.00014925,30]
[339505531,1727662342061,506.94314297,0.00015,30]
[339505533,1727662367321,799.0,9.901e-05,2]
[339505534,1727662388452,799.0,9.901e-05,2]
[339505535,1727662409627,799.0,9.901e-05,2]
[339505536,1727662430997,799.0,9.901e-05,2]
[339505537,1727662452380,799.0,9.901e-05,2]
[339505538,1727662473772,799.0,9.901e-05,2]
[339505539,1727662554762,171.93,8.812e-05,2]
[339505542,1727662640120,315.79,9.169e-05,2]
[339505544,1727663091283,160.42,9.589e-05,2]
[339505545,1727663214678,323.95,9.01e-05,2]
[339505546,1727663281405,1607.68409663,0.00015,120]
[339505571,1727663431652,-857.27981163,0.0001,2]
[339505572,1727663431664,-192.72018837,0.0001,2]
[339505573,1727663431673,-152.77287031,0.0001,2]
[339505574,1727663431683,-241.51099483,0.00010068,2]
[339505575,1727663431694,-258.48900517,0.00010068,2]
[339505576,1727663431704,-500.0,0.00010068,2]
[339505577,1727663431714,-600.0,0.00010068,2]
[339505578,1727663431724,-799.0,0.00010108,2]
[339505579,1727663431733,-1348.4709,0.00010504,2]
[339505580,1727663431743,-250.0,0.00010505,2]
[339505581,1727663431753,-177.26,0.00010586,2]
[339505582,1727663431763,-300.0,0.00010602,2]
[339505583,1727663431773,-1584.27766154,0.00010604,2]
[339505584,1727663431917,-1366.47233846,0.00010604,2]
[339505585,1727663431927,-490.51707724,0.0001064,2]
[339505586,1727663431938,-308.48292276,0.0001064,2]
[339505587,1727663431948,-16.93899219,0.00010872,2]
[339505588,1727663431959,-233.06100781,0.00010872,2]
[339505589,1727663431969,-163.41916391,0.00010905,2]
[339505590,1727663432005,-79.23083609,0.00010905,2]
[339505591,1727663432015,-201.33583823,0.0001091,2]
[339505592,1727663432027,-360.56416177,0.0001091,2]
[339505593,1727663432036,-125.25725506,0.00010933,2]
[339505605,1727663437920,-511.18085242,0.00010933,2]
[339505606,1727663438030,-3238.1349,0.00010933,2]
[339505607,1727663439550,-3241.38815,0.00010933,2]
[339505610,1727663439690,-16784.03884252,0.00010933,2]
[339505611,1727663439700,-150.0,0.00010958,2]
[339505612,1727663439710,-155.94,0.00010959,2]
[339505613,1727663439720,-150.0,0.00010959,2]
[339505614,1727663439729,-160.28,0.00010959,2]
[339505615,1727663439739,-615.43,0.00010959,2]
[339505616,1727663439749,-595.78,0.00010959,2]
[339505617,1727663439758,-512.86,0.00010959,2]
[339505618,1727663439769,-427.39,0.00010959,2]
[339505619,1727663439778,-356.15,0.00010959,2]
[339505620,1727663439788,-296.8,0.00010959,2]
[339505621,1727663439799,-247.33,0.00010959,2]
[339505622,1727663439808,-206.11,0.00010959,2]
[339505623,1727663439819,-171.76,0.00010959,2]
[339505624,1727663439828,-858.8,0.00010959,2]
[339505625,1727663439838,-250.0,0.00010959,2]
[339505626,1727663439848,-1000.0,0.00011163,2]
[339505627,1727663439858,-799.0,0.00011201,2]
[339505628,1727663439868,-323.95,0.00011274,2]
[339505629,1727663439879,-500.0,0.00011438,2]
[339505630,1727663439888,-600.0,0.00011438,2]
[339505631,1727663439898,-152.96697664,0.0001164,2]
[339505632,1727663439907,-1571.62098892,0.0001165,2]
[339505633,1727663439917,-2604.96851651,0.0001166,2]
[339505634,1727663439926,-361.12,0.00011671,2]
[339505636,1727663439936,-799.0,0.00011761,2]
[339505638,1727663439945,-422.34458308,0.00011835,2]
[339505639,1727663439955,-1100.0,0.00012,2]
[339505640,1727663439964,-161.13,0.00012069,2]
[339505641,1727663439974,-2469.74144354,0.00012228,2]
[339505642,1727663439986,-11.62254196,0.00012228,2]
[339505643,1727663439996,-12131.25891104,0.00012228,2]
[339505644,1727663440007,-2586.64,0.00012228,2]
[339505645,1727663440018,-319.8487212,0.00012228,2]
[339505646,1727663440041,-1293.09,0.00012228,2]
[339505647,1727663440072,-1034.02237981,0.00012228,2]
[339505648,1727663440083,-3342.47878795,0.00012228,2]
[339505649,1727663440093,-913.4699,0.00012229,2]
[339505650,1727663440102,-176.3418532,0.00012229,2]
[339505651,1727663440112,-2481.36398546,0.00012246,2]
[339505652,1727663440121,-2481.36398546,0.00012265,2]
[339505653,1727663440131,-151.0,0.00012265,2]
[339505654,1727663440141,-176.34185316,0.0001227,2]
[339505655,1727663440150,-2481.36398546,0.00012283,2]
[339505656,1727663440160,-213.041,0.00012288,2]
[339505657,1727663440170,-150.28773375,0.00012299,2]
[339505658,1727663440180,-3464.29999749,0.00012299,2]
[339505659,1727663440189,-16030.53486425,0.000123,2]
[339505673,1727663442631,-23983.86923699,0.000123,2]
[339505674,1727663442642,-12950.352,0.000123,2]
[339505675,1727663442653,-6482.07924441,0.000123,2]
[339505676,1727663442739,-64800.0,0.000123,2]
[339505677,1727663442842,-2985.00552974,0.000123,2]
[339505679,1727663442974,-402.58844964,0.00011697,2]
[339505680,1727663442986,-261.53144666,0.00011697,2]
[339505688,1727663445631,-1960.60096767,0.00011697,2]
[339505689,1727663445641,-1282.04192174,0.000123,2]
[339505690,1727663445653,-70254.63548582,0.000123,2]
[339505691,1727663445664,-2246.54853388,0.000123,2]
[339505692,1727663445675,-2905.771836,0.000123,2]
[339505693,1727663445735,-1552.725,0.000123,2]
[339505694,1727663445748,-1221.7588,0.000123,2]
[339505695,1727663445760,-821.1566,0.000123,2]
[339505696,1727663445771,-7368.6299918,0.000123,2]
[339505697,1727663445782,-3154.1894036,0.000123,2]
[339505698,1727663445849,-1070.0,0.000123,2]
[339505700,1727663542981,500.0,0.00015,30]
[339505701,1727663543524,500.0,0.00015,30]
[339505702,1727663543855,707.38540224,0.00015,30]
[339505703,1727663547487,697.18224908,0.00015,30]
[339505704,1727663548992,508.39371377,0.00015,30]
[339505705,1727663666744,160.42,9.589e-05,2]
[339505706,1727663848864,337.08,8.954e-05,2]
[339505708,1727664118985,1000.93523176,0.00015,30]
[339505709,1727664172032,2000.0,0.00015,30]
[339505710,1727664183470,1361.54120859,0.00015,30]
[339505711,1727664188242,2021.851,0.00015,30]
[339505712,1727664312084,158.1983257,9.968e-05,2]
[339505713,1727664365146,160.42,9.589e-05,2]
[339505715,1727664540631,376.1,8.567e-05,2]
[339505716,1727664542358,275.0,8.954e-05,2]
[339505717,1727664556585,500.0,8.954e-05,2]
[339505718,1727664556984,500.0,8.954e-05,2]
[339505722,1727664631887,-500.0,0.00010068,2]
[339505723,1727664631897,-500.0,0.00010068,2]
[339505724,1727664631907,-600.0,0.00010068,2]
[339505725,1727664631916,-799.0,0.00010108,2]
[339505726,1727664631925,-179.23,0.00010284,2]
[339505727,1727664631934,-150.0,0.00010384,2]
[339505728,1727664631944,-168.2,0.00010397,2]
[339505729,1727664631954,-250.0,0.0001045,2]
[339505730,1727664631963,-868.33,0.00010485,2]
[339505731,1727664631972,-250.0,0.00010508,2]
[339505732,1727664631981,-555.0264,0.00010541,2]
[339505733,1727664631991,-12953.38390316,0.00010547,2]
[339505734,1727664632002,-10946.61609684,0.00010547,2]
[339505735,1727664632011,-2844.39390316,0.00010547,2]
[339505736,1727664632023,-396.52609684,0.00010547,2]
[339505737,1727664632033,-184.56430427,0.00010547,2]
[339505738,1727664632284,-369.85569573,0.00010547,2]
[339505739,1727664632294,-656.61,0.00010549,2]
[339505740,1727664632303,-1000.0,0.00010569,2]
[339505741,1727664632312,-3361.89943642,0.00010578,2]
[339505742,1727664632324,-2185.60056358,0.00010578,2]
[339505743,1727664632333,-150.99,0.00010578,2]
[339505744,1727664632343,-799.0,0.0001064,2]
[339505745,1727664632352,-150.99,0.00010671,2]
[339505746,1727664632361,-41.08123175,0.00010771,2]
[339505747,1727664632415,-958.90876825,0.00010771,2]
[339505748,1727664632424,-659.03,0.00010771,2]
[339505749,1727664632433,-376.1,0.00010831,2]
[339505750,1727664632443,-150.0,0.00010958,2]
[339505751,1727664632452,-187.34,0.00010959,2]
[339505752,1727664632461,-150.0,0.00010959,2]
[339505753,1727664632471,-381.36,0.00010959,2]
[339505754,1727664632480,-156.27,0.00010959,2]
[339505755,1727664632490,-301.29,0.00010959,2]
[339505756,1727664632500,-251.08,0.00010959,2]
[339505757,1727664632510,-250.0,0.00010959,2]
[339505758,1727664632519,-209.23,0.00010959,2]
[339505759,1727664632528,-174.36,0.00010959,2]
[339505760,1727664632538,-4095.54845752,0.00010993,2]
[339505761,1727664632548,-159.29864434,0.00011071,2]
[339505762,1727664632559,-150.0,0.00011071,2]
[339505763,1727664632568,-153.37063201,0.00011071,2]
[339505764,1727664632578,-164.18,0.00011082,2]
[339505765,1727664632588,-1335.91619851,0.00011199,2]
[339505766,1727664632598,-1600.0,0.000112,4]
[339505767,1727664632607,-799.0,0.00011201,2]
[339505768,1727664632617,-940.71,0.00011233,2]
[339505769,1727664632626,-155.79,0.00011242,2]
[339505770,1727664632639,-155.79,0.00011261,2]
[339505771,1727664632648,-155.79,0.00011279,2]
[339505772,1727664632659,-155.79,0.00011298,2]
[339505773,1727664632668,-3200.0,0.000113,4]
[339505774,1727664632678,-181.92,0.00011389,2]
[339505775,1727664632688,-4800.0,0.000114,4]
[339505776,1727664632697,-500.0,0.00011438,2]
[339505777,1727664632707,-600.0,0.00011438,2]
[339505778,1727664632716,-3000.0,0.000115,2]
[339505779,1727664632726,-829.24584048,0.000115,4]
[339505804,1727664638483,-843.27,0.000115,4]
[339505806,1727664638494,-4827.48415952,0.000115,4]
[339505808,1727664638504,-8100.0,0.000116,4]
[339505810,1727664638513,-360.31,0.00011671,2]
[339505811,1727664638522,-358.35,0.00011671,2]
[339505813,1727664638531,-358.35,0.00011671,2]
[339505814,1727664638541,-358.35,0.00011671,2]
[339505815,1727664638550,-358.35,0.00011671,2]
[339505816,1727664638559,-1600.0,0.000117,4]
[339505817,1727664638568,-799.0,0.00011761,2]
[339505818,1727664638578,-1600.0,0.000118,4]
[339505819,1727664638587,-1000.0,0.0001189,2]
[339505820,1727664638597,-422.34458308,0.00011893,2]
[339505821,1727664638606,-1600.0,0.000119,4]
[339505822,1727664638616,-3000.0,0.00012,2]
[339505823,1727664638626,-1614.1191,0.00012028,2]
[339505824,1727664638637,-161.13,0.00012033,2]
[339505825,1727664638646,-18632.39465482,0.00012087,2]
[339505826,1727664638658,-1070.1255496,0.00012087,2]
[339505827,1727664638680,-297.46979558,0.00012087,2]
[339505828,1727664638690,-1183.47,0.00012087,2]
[339505829,1727664638701,-12173.40955442,0.00012087,2]
[339505830,1727664639719,-2615.98044558,0.00012087,2]
[339505831,1727664639728,-2078.34042072,0.00012101,2]
[339505832,1727664639738,-594.5154,0.00012128,2]
[339505833,1727664639747,-8055.79560886,0.00012128,2]
[339505835,1727664639969,-2051.96700228,0.00012128,2]
[339505836,1727664639980,-1452.25846956,0.00012128,2]
[339505837,1727664639992,-38622.5977193,0.00012128,2]
[339505838,1727664640001,-2078.34042066,0.00012133,2]
[339505839,1727664640011,-2078.34042066,0.00012166,2]
[339505840,1727664640020,-2078.34042066,0.00012198,2]
[339505841,1727664640030,-500.0,0.00012201,2]
[339505842,1727664640038,-500.0,0.00012202,2]
[339505843,1727664640048,-2000.0,0.00012202,2]
[339505844,1727664640058,-500.0,0.00012202,2]
[339505845,1727664640067,-500.0,0.00012202,2]
[339505846,1727664640076,-500.0,0.00012202,2]
[339505847,1727664640086,-200.0,0.00012202,2]
[339505848,1727664640095,-176.34185316,0.00012226,2]
[339505849,1727664640106,-814.0,0.00012227,2]
[339505850,1727664640116,-28756.51003222,0.00012228,2]
[339505851,1727664640127,-1816.06705901,0.00012228,2]
[339505852,1727664640146,-645.73,0.00012228,2]
[339505860,1727664640238,-627.38775487,0.00012228,2]
[339505918,1727664642925,-2151.55353911,0.00012228,2]
[339505919,1727664642940,-371.07060087,0.00012228,2]
[339505920,1727664643121,-301.25385499,0.00012228,2]
[339505921,1727664643139,-23285.42495893,0.00012228,2]
[339505922,1727664643155,-894.0289,0.00012228,2]
[339505923,1727664643168,-1449.0516,0.00012228,2]
[339505924,1727664643181,-13548.81036355,0.00012228,2]
[339505925,1727664643197,-497.68084261,0.00012228,2]
[339505926,1727664643213,-350.0,0.00012228,2]
[339505927,1727664643227,-4365.30126558,0.00012228,2]
[339505928,1727664643242,-514.36332826,0.00012228,2]
[339505929,1727664643254,-436.72973003,0.00012229,2]
[339505930,1727664643267,-1542.22037121,0.00012231,2]
[339505938,1727664645940,-536.12004945,0.00012231,2]
[339505939,1727664645953,-2078.34042066,0.00012263,2]
[339505940,1727664645965,-170.432,0.00012294,2]
[339505941,1727664645977,-2078.34042066,0.00012296,2]
[339505942,1727664645990,-150.01,0.00012299,2]
[339505943,1727664646003,-1209.75514161,0.000123,2]
[339505944,1727664646018,-263.39608,0.000123,2]
[339505962,1727664768202,322.4267,9.968e-05,2]
[339505964,1727664915026,4202.1636,9.9e-05,2]
[339505965,1727665017776,174.15,8.812e-05,2]
[339505966,1727665025198,160.42,9.589e-05,2]
[339505968,1727665229534,405.41,8.543e-05,2]
[339505969,1727665462393,750.197829,9.95e-05,2]
[339505971,1727665585995,174.13,8.487e-05,2]
[339505972,1727665607686,160.42,9.589e-05,2]
[339505990,1727665832269,-1050.0,0.0001,2]
[339505991,1727665832279,-600.0,0.00010068,2]
[339505992,1727665832289,-2717.28,0.00010309,2]
[339505993,1727665832298,-150.0,0.00010462,2]
[339505994,1727665832307,-500.0,0.00010463,2]
[339505995,1727665832317,-500.0,0.00010463,2]
[339505996,1727665832326,-500.0,0.00010463,2]
[339505997,1727665832336,-500.0,0.00010463,2]
[339505998,1727665832345,-500.0,0.00010463,2]
[339505999,1727665832354,-500.0,0.00010463,2]
[339506000,1727665832363,-500.0,0.00010463,2]
[339506001,1727665832373,-482.85633818,0.00010463,2]
[339506002,1727665832384,-17.14366182,0.00010463,2]
[339506003,1727665832394,-500.0,0.00010463,2]
[339506004,1727665832403,-500.0,0.00010463,2]
[339506005,1727665832413,-500.0,0.00010463,2]
[339506006,1727665832422,-500.0,0.00010463,2]
[339506007,1727665832431,-500.0,0.00010463,2]
[339506008,1727665832444,-500.0,0.00010463,2]
[339506009,1727665832454,-500.0,0.00010463,2]
[339506010,1727665832464,-500.0,0.00010463,2]
[339506011,1727665832473,-500.0,0.00010463,2]
[339506012,1727665832482,-181.92,0.00010464,2]
[339506013,1727665832492,-472.0,0.00010555,2]
[339506014,1727665832501,-544.43,0.00010555,2]
[339506015,1727665832510,-1000.0,0.00010562,2]
[339506016,1727665832519,-299.99,0.00010562,2]
[339506017,1727665832528,-250.0,0.00010562,2]
[339506018,1727665832538,-1507.65,0.00010562,2]
[339506019,1727665832547,-499.99,0.00010562,2]
[339506020,1727665832557,-330.81,0.00010562,2]
[339506021,1727665832566,-250.0,0.00010563,2]
[339506022,1727665832576,-23900.0,0.00010603,2]
[339506023,1727665832585,-799.0,0.0001064,2]
[339506024,1727665832594,-858.09,0.0001064,2]
[339506025,1727665832603,-177.41,0.00010959,2]
[339506026,1727665832612,-250.0,0.00010959,2]
[339506027,1727665832622,-154.2,0.00010959,2]
[339506028,1727665832631,-150.0,0.00010959,2]
[339506029,1727665832641,-169.15,0.00010959,2]
[339506030,1727665832650,-298.52,0.00010959,2]
[339506031,1727665832659,-248.76,0.00010959,2]
[339506032,1727665832669,-207.3,0.00010959,2]
[339506033,1727665832678,-172.75,0.00010959,2]
[339506034,1727665832689,-863.8,0.00010959,2]
[339506035,1727665832700,-1395.12238155,0.0001099,2]
[339506036,1727665832710,-500.0,0.00011,2]
[339506037,1727665832719,-176.80488001,0.00011071,2]
[339506038,1727665832728,-150.0,0.00011071,2]
[339506039,1727665832737,-175.63,0.0001111,2]
[339506040,1727665832747,-500.0,0.00011164,2]
[339506041,1727665832756,-500.0,0.00011164,2]
[339506042,1727665832765,-175.63,0.00011166,2]
[339506043,1727665832775,-799.0,0.00011201,2]
[339506044,1727665832784,-194.25,0.00011332,2]
[339506045,1727665832793,-600.0,0.00011438,2]
[339506046,1727665832803,-153.0,0.0001151,2]
[339506047,1727665832812,-158.142,0.00011742,2]
[339506048,1727665832822,-799.0,0.00011761,2]
[339506049,1727665832832,-1000.0,0.00011882,2]
[339506050,1727665832841,-422.34458308,0.00011957,2]
[339506051,1727665832851,-1100.0,0.00012,2]
[339506052,1727665832860,-375.1043,0.00012028,2]
[339506053,1727665832869,-917.9302,0.00012028,2]
[339506054,1727665832878,-4302.5433,0.00012028,2]
[339506055,1727665832887,-3613.1808,0.00012125,2]
[339506056,1727665832897,-1201.49085461,0.00012126,2]
[339506057,1727665832906,-176.34185316,0.00012126,2]
[339506058,1727665832916,-1201.49085459,0.00012156,2]
[339506059,1727665832925,-1201.49085459,0.00012185,2]
[339506060,1727665832935,-500.0,0.00012201,2]
[339506061,1727665832946,-500.0,0.00012202,2]
[339506062,1727665832956,-1351.07509373,0.00012202,2]
[339506063,1727665832968,-648.92490627,0.00012202,2]
[339506064,1727665832977,-500.0,0.00012202,2]